bitfinex/quotes_BTCUSD_20240718
["timestamp","ask_amount","ask_price","bid_price","bid_amount"]
[1721317663565,2.48258531,63877.0,63876.0,0.009174]
[1721317663772,2.51847344,63877.0,63876.0,0.009174]
[1721317664225,2.48258531,63877.0,63876.0,0.009174]
[1721317664439,2.50558531,63877.0,63876.0,0.009174]
[1721317664655,2.81868631,63877.0,63876.0,0.009174]
[1721317665585,2.50558531,63877.0,63876.0,0.009174]
[1721317667316,1.096077,63864.0,63863.0,0.009174]
[1721317667542,1.68662374,63864.0,63863.0,0.009174]
[1721317667752,1.37345874,63864.0,63863.0,0.009174]
[1721317669103,1.38745874,63864.0,63863.0,0.009174]
[1721317669310,1.52620461,63864.0,63863.0,0.009174]
[1721317669580,0.73812874,63864.0,63863.0,0.059174]
[1721317669831,0.42496374,63864.0,63863.0,0.059174]
[1721317670330,0.42496374,63864.0,63863.0,0.204274]
[1721317670731,0.72412874,63864.0,63863.0,0.204274]
[1721317670950,0.47475832,63864.0,63863.0,0.204274]
[1721317671637,0.014,63864.0,63863.0,0.204274]
[1721317671905,0.025,63864.0,63863.0,0.360859]
[1721317672138,0.011,63864.0,63863.0,0.204274]
[1721317672582,0.022,63864.0,63863.0,0.204274]
[1721317673030,0.0288575,63864.0,63863.0,0.204274]
[1721317673488,0.0388575,63864.0,63863.0,0.204274]
[1721317673931,0.50640424,63864.0,63863.0,0.154274]
[1721317674169,1.29445874,63864.0,63863.0,0.072674]
[1721317674603,1.39445874,63864.0,63863.0,0.009174]
[1721317674824,1.54880831,63864.0,63863.0,0.009174]
[1721317675046,1.85097331,63864.0,63863.0,0.009174]
[1721317675272,1.86097331,63864.0,63863.0,0.009174]
[1721317675734,1.85097331,63864.0,63863.0,0.009174]
[1721317675962,2.01587331,63864.0,63863.0,0.009174]
[1721317676182,2.47443831,63864.0,63863.0,0.009174]
[1721317676846,1.85097331,63864.0,63863.0,0.009174]
[1721317677286,1.86097331,63864.0,63863.0,0.009174]
[1721317677531,1.54780831,63864.0,63863.0,0.009174]
[1721317678210,1.23464331,63864.0,63863.0,0.08634879]
[1721317678649,0.89847831,63864.0,63863.0,0.13634879]
[1721317678870,0.92147831,63864.0,63863.0,0.08634879]
[1721317679121,1.23464331,63864.0,63863.0,0.08634879]
[1721317679584,1.54780831,63864.0,63863.0,0.009174]
[1721317680769,1.23464331,63864.0,63863.0,0.009174]
[1721317681459,1.54780831,63864.0,63863.0,0.009174]
[1721317682177,1.78920831,63864.0,63863.0,0.009174]
[1721317682437,2.10237331,63864.0,63863.0,0.009174]
[1721317682696,1.97588565,63864.0,63863.0,0.009174]
[1721317682941,2.06428565,63864.0,63863.0,0.009174]
[1721317683189,2.37745065,63864.0,63863.0,0.009174]
[1721317683405,2.95835065,63864.0,63863.0,0.009174]
[1721317684091,3.33601565,63864.0,63863.0,0.009174]
[1721317684360,1.887362,63862.0,63861.0,0.0236016]
[1721317684618,1.887362,63862.0,63845.0,0.0001]
[1721317684619,1.093432,63846.0,63845.0,0.0001]
[1721317684879,1.99383208,63846.0,63845.0,0.0001]
[1721317685108,2.09383208,63846.0,63845.0,0.0001]
[1721317685341,2.05541974,63846.0,63845.0,0.0001]
[1721317685582,2.20976931,63846.0,63845.0,0.0001]
[1721317685805,2.23276931,63846.0,63845.0,0.0001]
[1721317686326,2.00626931,63846.0,63845.0,0.0001]
[1721317687324,2.02026931,63846.0,63845.0,0.001024]
[1721317688225,2.33352231,63846.0,63845.0,0.001024]
[1721317688451,2.16276931,63846.0,63845.0,0.001024]
[1721317688693,2.18735505,63846.0,63845.0,0.001024]
[1721317688914,2.50060805,63846.0,63845.0,0.001024]
[1721317689183,2.52860805,63846.0,63845.0,0.001024]
[1721317689418,2.81180805,63846.0,63845.0,1e-06]
[1721317689655,2.88625619,63846.0,63845.0,1e-06]
[1721317690104,3.10305619,63846.0,63845.0,1e-06]
[1721317690322,2.031133,63837.0,63836.0,0.004175]
[1721317690548,2.63030048,63837.0,63836.0,0.004175]
[1721317690775,2.31700348,63837.0,63836.0,0.004175]
[1721317691480,2.63030048,63837.0,63836.0,0.004175]
[1721317691698,2.63208378,63837.0,63836.0,0.004175]
[1721317691921,2.78643335,63837.0,63836.0,0.004175]
[1721317693232,2.80043335,63837.0,63836.0,0.004175]
[1721317693708,2.76006431,63837.0,63836.0,0.004175]
[1721317694146,1.888253,63829.0,63828.0,0.009174]
[1721317694390,2.92520072,63829.0,63828.0,1e-06]
[1721317694610,3.06563537,63829.0,63828.0,1e-06]
[1721317694827,3.08846164,63829.0,63828.0,1e-06]
[1721317695271,3.04820072,63829.0,63828.0,1e-06]
[1721317695496,3.08872895,63829.0,63828.0,1e-06]
[1721317696231,2.46205495,63829.0,63828.0,1e-06]
[1721317696459,1.94759774,63829.0,63828.0,1e-06]
[1721317696677,1.25106074,63829.0,63828.0,1e-06]
[1721317696898,0.31104974,63829.0,63828.0,0.12717579]
[1721317697133,0.63838674,63829.0,63828.0,0.12717579]
[1721317697386,0.16838174,63829.0,63828.0,0.12717579]
[1721317697599,1.28189891,63829.0,63828.0,1e-06]
[1721317697835,0.96856191,63829.0,63828.0,1e-06]
[1721317698268,0.96856191,63829.0,63828.0,0.050001]
[1721317698269,0.65238674,63829.0,63828.0,0.050001]
[1721317698712,0.96572374,63829.0,63828.0,1e-06]
[1721317698936,0.95172374,63829.0,63828.0,1e-06]
[1721317699152,0.97472374,63829.0,63828.0,0.050001]
[1721317699376,0.90189131,63829.0,63828.0,0.050001]
[1721317699603,0.028,63829.0,63828.0,0.050001]
[1721317699831,0.1,63838.0,63831.0,0.05]
[1721317700099,0.156661,63832.0,63831.0,0.05]
[1721317700346,0.156667,63830.0,63829.0,0.05]
[1721317700557,0.156658,63834.0,63829.0,0.05]
[1721317700794,0.15434957,63837.0,63836.0,0.05]
[1721317701017,0.25434957,63837.0,63836.0,0.05]
[1721317701236,0.74729457,63837.0,63836.0,0.05]
[1721317701458,0.43402974,63837.0,63836.0,0.1892]
[1721317701679,0.74732674,63837.0,63836.0,0.1892]
[1721317701904,0.43402974,63837.0,63836.0,0.1892]
[1721317702133,0.13728738,63845.0,63839.0,0.156642]
[1721317702363,0.156629,63845.0,63844.0,0.05]
[1721317702605,0.783145,63845.0,63844.0,0.05]
[1721317702827,0.469887,63845.0,63844.0,0.05]
[1721317703534,0.62426874,63845.0,63844.0,0.05]
[1721317703783,1.06260221,63845.0,63844.0,0.05]
[1721317704042,0.469902,63843.0,63842.0,0.05]
[1721317704309,0.17738174,63843.0,63830.0,0.1108]
[1721317704547,0.783317,63831.0,63830.0,0.1108]
[1721317704797,1.25102574,63831.0,63830.0,0.05]
[1721317705019,1.27402574,63831.0,63830.0,0.05]
[1721317705250,0.64737174,63831.0,63830.0,0.05]
[1721317705479,0.156655,63835.0,63834.0,0.05]
[1721317705713,1.09198174,63835.0,63834.0,0.05]
[1721317705950,0.44236774,63835.0,63834.0,0.05]
[1721317706178,0.75567474,63835.0,63834.0,0.05]
[1721317706699,0.28571274,63835.0,63834.0,0.05]
[1721317706913,0.41103474,63835.0,63834.0,0.05]
[1721317707166,0.25438174,63835.0,63834.0,0.05]
[1721317707382,0.31103474,63835.0,63834.0,0.05]
[1721317707599,0.62434174,63835.0,63834.0,0.05]
[1721317708016,0.71810531,63835.0,63834.0,0.05]
[1721317708241,0.40479831,63835.0,63834.0,0.05]
[1721317708746,0.15438174,63835.0,63834.0,0.05]
[1721317709001,0.31103474,63835.0,63834.0,0.05]
[1721317709200,0.31903474,63835.0,63834.0,0.05]
[1721317709412,0.16238174,63835.0,63834.0,0.05]
[1721317709620,0.16938174,63835.0,63834.0,0.05]
[1721317709839,0.72545203,63835.0,63834.0,0.05]
[1721317710051,0.95264874,63835.0,63834.0,0.05]
[1721317710305,0.783292,63833.0,63832.0,0.05]
[1721317710561,0.62435674,63833.0,63832.0,0.05]
[1721317710803,0.71962251,63833.0,63832.0,0.05]
[1721317711037,0.15438174,63833.0,63832.0,0.05]
[1721317711274,0.15438174,63833.0,63832.0,0.1154]
[1721317711494,0.015,63835.0,63834.0,0.596868]
[1721317712212,0.015,63835.0,63834.0,0.97558]
[1721317712213,0.008,63835.0,63834.0,0.97558]
[1721317712447,0.008,63835.0,63834.0,1.288892]
[1721317712656,0.46304871,63850.0,63849.0,0.05]
[1721317712922,0.76795729,63850.0,63849.0,0.05]
[1721317713148,0.313193,63859.0,63858.0,0.05]
[1721317713376,0.15438174,63859.0,63858.0,0.05]
[1721317713638,0.15438174,63859.0,63858.0,0.1155]
[1721317714329,0.4665,63861.0,63860.0,0.05]
[1721317714588,0.4665,63861.0,63860.0,0.206592]
[1721317714809,0.4665,63861.0,63858.0,0.378691]
[1721317714810,0.46734,63876.0,63875.0,0.05]
[1721317715040,0.36673874,63876.0,63875.0,0.05]
[1721317715266,0.15522174,63876.0,63875.0,0.05]
[1721317715522,0.15522174,63876.0,63875.0,0.1129]
[1721317715762,0.00084,63876.0,63875.0,0.1129]
[1721317715979,0.00084,63876.0,63875.0,0.350455]
[1721317716263,0.00084,63876.0,63875.0,0.663566]
[1721317716518,0.00084,63876.0,63875.0,0.976677]
[1721317717181,0.00084,63876.0,63875.0,0.663566]
[1721317717912,0.00584,63876.0,63875.0,0.1939]
[1721317718138,0.01084,63876.0,63875.0,0.350455]
[1721317718362,0.01084,63876.0,63875.0,1.289788]
[1721317718588,0.01084,63876.0,63875.0,0.663566]
[1721317719067,0.01084,63876.0,63875.0,0.350455]
[1721317719307,0.01084,63876.0,63875.0,0.663566]
[1721317719533,0.01084,63876.0,63875.0,0.976677]
[1721317719785,0.01084,63876.0,63875.0,0.350455]
[1721317719999,0.01084,63876.0,63875.0,0.663566]
[1721317720261,0.01084,63876.0,63875.0,0.976677]
[1721317720725,0.01084,63876.0,63875.0,0.1939]
[1721317720950,0.16522174,63876.0,63875.0,0.1939]
[1721317721186,0.16522174,63876.0,63849.0,0.0463919]
[1721317721187,0.156617,63850.0,63849.0,0.0463919]
[1721317721440,0.1457,63872.0,63857.0,0.05]
[1721317721441,0.156597,63858.0,63857.0,0.05]
[1721317721699,0.156602,63856.0,63855.0,0.05]
[1721317721951,0.469879,63846.0,63845.0,0.05]
[1721317722195,0.62426074,63846.0,63845.0,0.05]
[1721317722877,0.156607,63854.0,63853.0,0.05]
[1721317723107,0.62420274,63854.0,63853.0,0.05]
[1721317723327,0.62420274,63854.0,63844.0,0.313261]
[1721317723328,0.156604,63855.0,63854.0,0.05]
[1721317723556,0.469813,63855.0,63854.0,0.05]
[1721317724031,0.156604,63855.0,63854.0,0.05]
[1721317724536,0.164604,63855.0,63854.0,0.05]
[1721317724734,0.525593,63855.0,63854.0,0.05]
[1721317724949,0.164604,63855.0,63854.0,0.05]
[1721317725184,0.156604,63855.0,63854.0,0.05]
[1721317725434,0.4665,63862.0,63861.0,0.05]
[1721317725780,0.623087,63862.0,63861.0,0.05]
[1721317726130,1.5106329,63862.0,63861.0,0.05]
[1721317726381,0.7276959,63862.0,63853.0,0.05]
[1721317726626,0.7276959,63862.0,63844.0,0.0779]
[1721317726627,0.313204,63856.0,63855.0,0.05]
[1721317726865,0.31046031,63856.0,63849.0,0.05]
[1721317727119,0.596424,63852.0,63847.0,0.05]
[1721317727369,0.783132,63846.0,63845.0,0.05]
[1721317727592,1.25076674,63846.0,63845.0,0.05]
[1721317727858,0.93751374,63846.0,63845.0,0.05]
[1721317728099,0.31100774,63846.0,63845.0,0.05]
[1721317728330,0.15438174,63846.0,63845.0,0.05]
[1721317728624,0.469823,63854.0,63853.0,0.05]
[1721317728879,1.14404414,63854.0,63853.0,0.05]
[1721317729100,0.156612,63852.0,63851.0,0.05]
[1721317729323,0.62421774,63852.0,63851.0,0.05]
[1721317730571,0.93744174,63852.0,63851.0,0.05]
[1721317730850,0.75928291,63852.0,63851.0,0.05]
[1721317731108,0.16538174,63852.0,63851.0,0.05]
[1721317731575,0.62421774,63852.0,63851.0,0.05]
[1721317731811,0.63721774,63852.0,63851.0,0.05]
[1721317732086,0.96344174,63852.0,63851.0,0.05]
[1721317732317,0.313239,63849.0,63848.0,0.05]
[1721317732552,0.313239,63849.0,63847.0,0.05]
[1721317732553,0.156621,63848.0,63847.0,0.05]
[1721317732780,1.02905742,63848.0,63847.0,0.05]
[1721317733478,0.156644,63839.0,63838.0,0.052794]
[1721317733722,0.156644,63839.0,63827.0,0.156671]
[1721317733723,0.469953,63836.0,63835.0,0.05]
[1721317733953,0.93763674,63836.0,63835.0,0.05]
[1721317734697,0.4665,63847.0,63846.0,0.05]
[1721317734698,0.936372,63847.0,63846.0,0.05]
[1721317734955,1.09075374,63847.0,63846.0,0.05]
[1721317735175,1.20112911,63847.0,63846.0,0.05]
[1721317735407,1.09075374,63847.0,63846.0,0.05]
[1721317735671,0.77750574,63847.0,63846.0,0.05]
[1721317735901,0.62088174,63847.0,63846.0,0.05]
[1721317736121,1.09075374,63847.0,63846.0,0.05]
[1721317736341,0.62088174,63847.0,63846.0,0.05]
[1721317736800,0.4665,63847.0,63846.0,0.05]
[1721317737791,0.4945,63847.0,63846.0,0.05]
[1721317738522,0.4805,63847.0,63846.0,0.05]
[1721317739207,0.028,63847.0,63846.0,0.05]
[1721317739662,0.028,63847.0,63846.0,0.206626]
[1721317739892,0.028,63847.0,63846.0,0.05]
[1721317740825,0.014,63847.0,63846.0,0.05]
[1721317741309,0.026,63847.0,63846.0,0.05]
[1721317741789,0.012,63847.0,63846.0,0.05]
[1721317742022,0.012,63847.0,63846.0,0.519879]
[1721317742252,0.024,63847.0,63846.0,1.291185]
[1721317742509,0.024,63847.0,63846.0,0.664679]
[1721317742758,0.024,63847.0,63846.0,0.585379]
[1721317742983,0.024,63847.0,63846.0,0.1155]
[1721317743245,0.012,63847.0,63846.0,0.05]
[1721317744182,0.156617,63850.0,63849.0,0.05]
[1721317744426,0.783085,63850.0,63849.0,0.05]
[1721317744676,0.93746674,63850.0,63849.0,0.05]
[1721317745148,0.62423274,63850.0,63849.0,0.05]
[1721317745390,0.313203,63857.0,63854.0,0.05]
[1721317745614,0.313193,63859.0,63858.0,0.05]
[1721317745852,0.62416874,63859.0,63858.0,0.05]
[1721317746367,0.31097574,63859.0,63858.0,0.05]
[1721317746595,0.779683,63861.0,63860.0,0.05]
[1721317746596,0.936273,63861.0,63860.0,0.05]
[1721317746821,1.09065474,63861.0,63860.0,0.05]
[1721317747318,0.936273,63861.0,63860.0,0.05]
[1721317747550,1.249456,63861.0,63860.0,0.05]
[1721317748054,0.782956,63861.0,63860.0,0.05]
[1721317748299,0.792956,63861.0,63860.0,0.05]
[1721317748558,0.479773,63861.0,63860.0,0.05]
[1721317749494,0.489773,63861.0,63860.0,0.05]
[1721317750418,0.802953,63861.0,63860.0,0.05]
[1721317750661,0.33712802,63861.0,63853.0,0.05]
[1721317750902,0.33712802,63861.0,63844.0,0.05]
[1721317750903,0.783145,63845.0,63844.0,0.05]
[1721317751164,0.783157,63844.0,63837.0,0.05]
[1721317751413,0.469939,63838.0,63837.0,0.05]
[1721317751628,0.783232,63838.0,63837.0,0.05]
[1721317752849,0.31101574,63843.0,63842.0,0.05]
[1721317753108,0.014,63844.0,63843.0,0.05]
[1721317753345,0.014,63844.0,63841.0,0.05]
[1721317753346,0.156636,63842.0,63841.0,0.05]
[1721317753570,0.156636,63842.0,63840.0,0.05]
[1721317753571,0.783195,63841.0,63840.0,0.05]
[1721317753800,0.97909411,63841.0,63840.0,0.05]
[1721317754269,0.97909411,63841.0,63839.0,0.05]
[1721317754270,0.783207,63840.0,63839.0,0.05]
[1721317754500,1.04000611,63840.0,63839.0,0.05]
[1721317754730,1.09354412,63840.0,63839.0,0.05]
[1721317754966,1.09322647,63840.0,63839.0,0.05]
[1721317755914,1.06302675,63840.0,63839.0,0.05]
[1721317756139,0.36303161,63840.0,63839.0,0.05]
[1721317756369,0.011,63840.0,63839.0,0.05]
[1721317756806,0.011,63840.0,63839.0,0.05517874]
[1721317757306,0.022,63840.0,63839.0,0.52511074]
[1721317757554,0.022,63840.0,63839.0,0.98469874]
[1721317757840,0.022,63840.0,63839.0,1.29971298]
[1721317758307,0.178641,63840.0,63839.0,0.05690498]
[1721317758535,0.805207,63840.0,63839.0,0.00517396]
[1721317758765,1.35399244,63840.0,63839.0,0.00517396]
[1721317759017,0.469939,63838.0,63837.0,0.05]
[1721317759243,0.011,63840.0,63839.0,0.05]
[1721317759466,0.012,63840.0,63839.0,0.05]
[1721317759687,0.001,63840.0,63839.0,0.05517395]
[1721317759935,0.003,63840.0,63839.0,0.27761795]
[1721317760176,0.017,63840.0,63839.0,0.90419395]
[1721317760399,0.014,63840.0,63839.0,0.90419395]
[1721317760841,0.018,63840.0,63839.0,0.90419395]
[1721317761068,0.004,63840.0,63839.0,0.90589105]
[1721317761286,0.008,63840.0,63839.0,0.90589105]
[1721317763931,0.008,63840.0,63839.0,0.27931505]
[1721317764131,0.008,63840.0,63839.0,0.59260305]
[1721317766337,0.008,63840.0,63839.0,0.27931505]
[1721317766573,0.008,63840.0,63839.0,0.05687105]
[1721317766795,0.164641,63840.0,63839.0,0.05687105]
[1721317767026,1.1836093,63840.0,63839.0,0.00687105]
[1721317767253,1.41659104,63840.0,63839.0,0.05687105]
[1721317767516,0.31610104,63840.0,63835.0,0.05]
[1721317767756,0.46996,63835.0,63834.0,0.05]
[1721317767998,0.783267,63835.0,63834.0,0.05]
[1721317768457,0.78328,63834.0,63833.0,0.05]
[1721317768699,1.40100381,63834.0,63833.0,0.05]
[1721317769171,1.43968739,63834.0,63833.0,0.05]
[1721317769398,1.40100381,63834.0,63833.0,0.05]
[1721317770078,1.25097374,63834.0,63833.0,0.05]
[1721317770318,0.469968,63834.0,63833.0,0.05]
[1721317770615,0.79128,63834.0,63833.0,0.05]
[1721317771088,1.2971233,63834.0,63833.0,0.05]
[1721317771312,1.096609,63833.0,63832.0,0.05]
[1721317771536,1.43054366,63833.0,63832.0,0.05]
[1721317771757,1.3923941,63833.0,63832.0,0.05]
[1721317772219,0.93767374,63833.0,63832.0,0.05]
[1721317773190,0.469975,63833.0,63832.0,0.05]
[1721317773903,0.469975,63833.0,63832.0,0.05519327]
[1721317774127,0.469975,63833.0,63832.0,0.05]
[1721317775051,0.162658,63833.0,63832.0,0.05]
[1721317775280,0.006,63833.0,63832.0,0.05]
[1721317775528,0.006,63833.0,63832.0,0.664583]
[1721317775777,0.006,63833.0,63832.0,0.98309827]
[1721317776042,0.012,63833.0,63832.0,0.98482936]
[1721317776490,0.012,63833.0,63832.0,1.34815136]
[1721317776717,0.012,63833.0,63832.0,1.29815136]
[1721317777014,0.006,63833.0,63832.0,1.29815136]
[1721317777237,0.007,63833.0,63832.0,0.98582936]
[1721317777900,0.002,63833.0,63832.0,1.06400415]
[1721317778119,0.002,63833.0,63832.0,1.11400415]
[1721317778316,0.002,63833.0,63832.0,1.42732615]
[1721317778614,0.002,63833.0,63832.0,1.58170789]
[1721317779064,0.002,63833.0,63832.0,1.53170789]
[1721317779304,0.002,63833.0,63832.0,1.21838589]
[1721317779790,0.008,63833.0,63832.0,1.21838589]
[1721317780017,0.008,63833.0,63832.0,0.05892436]
[1721317780241,0.181123,63833.0,63832.0,0.05719327]
[1721317780475,0.471975,63833.0,63832.0,0.05719327]
[1721317780717,0.471975,63833.0,63832.0,0.052]
[1721317781166,0.470975,63833.0,63832.0,0.052]
[1721317781413,0.475975,63833.0,63832.0,0.052]
[1721317782595,0.470975,63833.0,63832.0,0.052]
[1721317782828,0.001,63833.0,63832.0,0.052]
[1721317783077,0.006,63833.0,63832.0,0.052]
[1721317783296,0.006,63833.0,63832.0,0.05718977]
[1721317783756,0.157486,63834.0,63833.0,0.05]
[1721317784268,0.157486,63834.0,63833.0,0.05518473]
[1721317784514,0.00083,63834.0,63833.0,0.05518473]
[1721317784986,0.00083,63834.0,63833.0,0.05831759]
[1721317785232,0.00083,63834.0,63833.0,0.21184273]
[1721317785451,0.00683,63834.0,63833.0,0.05518473]
[1721317785670,0.163486,63834.0,63833.0,0.05518473]
[1721317785934,0.476798,63834.0,63833.0,0.05518473]
[1721317786197,0.9357186,63834.0,63833.0,0.05518473]
[1721317786415,0.9357186,63834.0,63833.0,0.05]
[1721317787087,0.9417186,63834.0,63833.0,0.05]
[1721317787327,0.86271,63834.0,63833.0,0.05]
[1721317787580,0.79611,63834.0,63833.0,0.05]
[1721317788288,0.79511,63834.0,63833.0,0.05]
[1721317788529,0.01183,63834.0,63833.0,0.05]
[1721317788978,0.168486,63834.0,63833.0,0.05]
[1721317789205,0.01183,63834.0,63833.0,0.05518952]
[1721317789951,0.01183,63834.0,63833.0,0.21184752]
[1721317790208,0.01183,63834.0,63833.0,0.83848152]
[1721317790670,0.01183,63834.0,63833.0,0.84021136]
[1721317791876,0.01783,63834.0,63833.0,0.84021136]
[1721317792567,0.00683,63834.0,63833.0,0.84021136]
[1721317792798,0.00683,63834.0,63833.0,0.52689436]
[1721317793032,0.00083,63834.0,63833.0,0.52689436]
[1721317793253,0.00183,63834.0,63833.0,0.52916085]
[1721317793988,0.00183,63834.0,63833.0,0.21584385]
[1721317794863,0.158486,63834.0,63833.0,0.05918585]
[1721317795117,0.471798,63834.0,63833.0,0.05918585]
[1721317795616,0.471798,63834.0,63833.0,0.054]
[1721317796099,0.470798,63834.0,63833.0,0.051]
[1721317796349,1.0408488,63834.0,63833.0,0.05]
[1721317796565,1.07968968,63834.0,63833.0,0.051]
[1721317796801,0.96995088,63834.0,63833.0,0.051]
[1721317797067,1.01677494,63834.0,63833.0,0.051]
[1721317797282,1.02277494,63834.0,63833.0,0.001]
[1721317797757,0.783292,63833.0,63832.0,0.05]
[1721317797981,0.470005,63829.0,63828.0,1e-06]
[1721317798213,0.470005,63829.0,63828.0,0.050001]
[1721317798214,0.783342,63829.0,63828.0,0.050001]
[1721317798442,0.50810241,63829.0,63828.0,0.050001]
[1721317798699,0.50871491,63829.0,63828.0,0.050001]
[1721317799389,0.97284134,63829.0,63828.0,1e-06]
[1721317799621,1.60476008,63829.0,63828.0,1e-06]
[1721317799884,0.470122,63813.0,63807.0,0.002794]
[1721317800124,0.470122,63813.0,63802.0,0.05]
[1721317800125,1.29594389,63813.0,63802.0,0.05]
[1721317800341,2.11229085,63813.0,63808.0,0.05]
[1721317800572,1.77587585,63813.0,63808.0,0.05]
[1721317800798,1.89286018,63813.0,63812.0,0.059174]
[1721317801029,1.73716594,63813.0,63812.0,0.009174]
[1721317801270,1.89364463,63813.0,63812.0,0.009174]
[1721317801532,2.20705963,63813.0,63812.0,0.009174]
[1721317801757,1.097176,63800.0,63797.0,0.0144276]
[1721317802055,1.71786055,63800.0,63797.0,0.0144276]
[1721317802286,1.71786669,63800.0,63797.0,0.0144276]
[1721317802534,2.14633059,63800.0,63797.0,0.0144276]
[1721317802760,1.88831915,63800.0,63798.0,0.05]
[1721317802981,1.75909135,63800.0,63797.0,0.0144276]
[1721317803234,1.71208459,63800.0,63797.0,0.0144276]
[1721317803696,2.02556359,63800.0,63797.0,0.0144276]
[1721317804177,1.75697841,63800.0,63797.0,0.0144276]
[1721317804388,1.75697841,63800.0,63798.0,0.05]
[1721317804617,1.53175774,63800.0,63797.0,0.0144276]
[1721317804841,1.53175774,63800.0,63798.0,0.05]
[1721317805062,1.19527874,63800.0,63799.0,0.059174]
[1721317805321,0.88179974,63800.0,63799.0,0.059174]
[1721317805790,1.19527874,63800.0,63799.0,0.059174]
[1721317806021,1.36015361,63800.0,63799.0,0.059174]
[1721317806275,1.20927874,63800.0,63799.0,0.059174]
[1721317806510,1.52275774,63800.0,63799.0,0.009174]
[1721317806751,1.82925774,63800.0,63799.0,0.009174]
[1721317806964,2.29708631,63800.0,63799.0,0.009174]
[1721317807462,2.34649461,63800.0,63799.0,0.009174]
[1721317807687,2.34649461,63800.0,63797.0,0.0144276]
[1721317807688,1.234911,63798.0,63797.0,0.0144276]
[1721317807913,1.84345624,63798.0,63797.0,0.0144276]
[1721317808126,2.38386769,63798.0,63797.0,0.0144276]
[1721317808342,2.11749655,63798.0,63797.0,0.0144276]
[1721317808554,2.07682205,63798.0,63797.0,0.0144276]
[1721317809298,2.09082205,63798.0,63797.0,0.0144276]
[1721317809950,2.10482205,63798.0,63797.0,0.0144276]
[1721317810617,2.22260419,63798.0,63797.0,0.0144276]
[1721317810825,2.26972205,63798.0,63797.0,0.0144276]
[1721317811073,2.10482205,63798.0,63797.0,0.0144276]
[1721317812497,2.05770419,63798.0,63797.0,0.0144276]
[1721317812945,2.00813131,63798.0,63797.0,0.0144276]
[1721317813607,1.25815331,63798.0,63797.0,0.0644276]
[1721317814115,0.028,63798.0,63797.0,0.0644276]
[1721317814313,0.484233,63798.0,63797.0,0.0644276]
[1721317814801,0.028,63798.0,63797.0,0.2211746]
[1721317815061,0.028,63798.0,63797.0,0.5346686]
[1721317815275,0.028,63798.0,63797.0,0.2211746]
[1721317815493,0.014,63798.0,63797.0,0.0653406]
[1721317815973,0.498233,63798.0,63797.0,0.0653406]
[1721317816182,0.484233,63798.0,63797.0,0.0653406]
[1721317816402,0.014,63798.0,63797.0,0.6814816]
[1721317816878,0.015,63798.0,63797.0,0.6814816]
[1721317817336,0.025,63798.0,63797.0,0.6814816]
[1721317817572,0.025,63798.0,63797.0,0.0653406]
[1721317817820,0.68346164,63798.0,63797.0,0.0653406]
[1721317818074,1.01310374,63798.0,63797.0,0.0153406]
[1721317818314,1.32659274,63798.0,63797.0,0.0153406]
[1721317818765,1.32659274,63798.0,63797.0,0.0653406]
[1721317819015,1.32659274,63798.0,63797.0,0.0153406]
[1721317819470,1.48094231,63798.0,63797.0,0.0153406]
[1721317819916,1.46994231,63798.0,63797.0,0.0153406]
[1721317820393,1.47094231,63798.0,63797.0,0.0153406]
[1721317820618,1.90743131,63798.0,63797.0,0.0153406]
[1721317821082,1.98853131,63798.0,63797.0,0.0153406]
[1721317821306,1.240588,63782.0,63781.0,0.009185]
[1721317821558,1.99203774,63782.0,63781.0,0.009185]
[1721317821792,2.06079682,63782.0,63781.0,0.009185]
[1721317823362,2.16079682,63782.0,63781.0,0.009185]
[1721317824331,2.63926482,63782.0,63781.0,0.009185]
[1721317824585,2.79361439,63782.0,63781.0,0.009185]
[1721317825239,2.31514639,63782.0,63781.0,0.009185]
[1721317825469,2.34314639,63782.0,63781.0,0.009185]
[1721317826125,2.32914639,63782.0,63781.0,0.009185]
[1721317826337,2.28338731,63782.0,63781.0,0.009185]
[1721317826577,2.32914639,63782.0,63781.0,0.009185]
[1721317827018,2.28338731,63782.0,63781.0,0.009185]
[1721317827438,2.32914639,63782.0,63781.0,0.009185]
[1721317827679,2.28338731,63782.0,63781.0,0.009185]
[1721317827964,2.29738731,63782.0,63781.0,0.009185]
[1721317828418,2.34314639,63782.0,63781.0,0.009185]
[1721317828649,2.29738731,63782.0,63781.0,0.009185]
[1721317828876,2.38533523,63782.0,63781.0,0.009185]
[1721317829096,2.33957615,63782.0,63781.0,0.009185]
[1721317829309,2.38533523,63782.0,63781.0,0.009185]
[1721317829949,2.34314639,63782.0,63781.0,0.009185]
[1721317830200,2.33955624,63782.0,63781.0,0.009185]
[1721317830436,2.28315624,63782.0,63781.0,0.009185]
[1721317830654,2.32891652,63782.0,63781.0,0.009185]
[1721317830868,2.28315744,63782.0,63781.0,0.009185]
[1721317831111,2.28285576,63782.0,63781.0,0.009185]
[1721317832284,2.32861484,63782.0,63781.0,0.009185]
[1721317833428,2.32861484,63782.0,63772.0,0.009185]
[1721317833429,1.411254,63773.0,63772.0,0.009185]
[1721317833650,1.79273574,63773.0,63772.0,0.009185]
[1721317833873,1.90860276,63773.0,63772.0,0.009185]
[1721317834112,1.57199076,63773.0,63772.0,0.009185]
[1721317834394,1.16551174,63773.0,63772.0,0.059185]
[1721317834621,1.47912374,63773.0,63772.0,0.059185]
[1721317835300,1.63903611,63773.0,63772.0,0.009185]
[1721317835519,1.49112374,63773.0,63772.0,0.009185]
[1721317835965,1.50312374,63773.0,63772.0,0.059185]
[1721317837102,1.50312374,63773.0,63772.0,0.009185]
[1721317837541,1.52612374,63773.0,63772.0,0.009185]